Cogmind - Beta 15 @@@ ROGUE MODE // 2025.05.18 @ 13:41:14 Player: Cheeriohz Result: Destroyed by YB-5GJ(R) with Subdweller Machine Gun Performance ------------- Evolutions (0) 0 Regions Visited (2) 400 Robots Destroyed (22) 110 Value Destroyed (464) 464 Prototype IDs (1) 20 Alien Tech Used (0) 0 Bonus (0) 0 TOTAL SCORE: 994 Bonus ------- None Cogmind --------- Core Integrity 0/250 Matter 272/300 Energy 29/100 System Corruption 2% Temperature Cool (0) Movement Treading (320) Ox2 Location -10/Subcaves Parts ------- > --- POWER (1) -------- (None) > --- PROPULSION (2) --- Light Treads > --- UTILITY (2) ------ High-capacity Storage Unit Makeshift Kinetic Plating > --- WEAPON (2) ------- Heavy Riot Gun Hammer > --- INVENTORY (20) --- Light Treads Wheel Improved Terrain Scanner Core Shielding Makeshift Light Armor Plating EM Shotgun EM Shotgun Assault Rifle Battle Rifle Subdweller Machine Gun Subdweller Machine Gun Subdweller Machine Gun EMP Blaster EMP Blaster Subdweller Shrapnel Launcher Multitool Flamer Peak State ------------ > --- POWER ------------ Ion Engine > --- PROPULSION ------- Light Treads Light Treads > --- UTILITY ---------- High-capacity Storage Unit Makeshift Kinetic Plating > --- WEAPON ----------- Riot Gun Heavy Riot Gun > --- INVENTORY -------- Light Treads Wheel Improved Terrain Scanner Core Shielding EM Shotgun EM Shotgun EM Shotgun EM Shotgun Improved EM Shotgun Assault Rifle Subdweller Machine Gun Subdweller Machine Gun Subdweller Machine Gun EMP Blaster EMP Blaster EMP Blaster Subdweller Shrapnel Launcher Multitool Flamer Hammer [Rating: 18] Favorites ----------- Power Ion Engine Engine Ion Engine Propulsion Light Treads Treads Light Treads Leg Aluminum Leg Wheel Wheel Utility High-capacity Storage Unit Storage High-capacity Storage Unit Protection Core Shielding Weapon Improved EM Shotgun Energy Gun Improved EM Shotgun Ballistic Gun Light Assault Rifle Launcher EMP Blaster Impact Weapon Hammer Build | -11 -10 -10 ------- Run | Yrd Mat Sub Slots Evolved . | . . . Power . | . . . Propulsion . | . . . Utility . | . . . Weapon . | . . . Parts Attached 20 | 2 8 10 Power 1 | . . 1 Engine 1 | . . 1 Core . | . . . Reactor . | . . . Propulsion 6 | 2 2 2 Treads 2 | . . 2 Leg . | . . . Wheel 4 | 2 2 . Hover . | . . . Flight . | . . . Utility 3 | . 2 1 Device . | . . . Storage 1 | . 1 . Processor . | . . . Hackware . | . . . Protection 2 | . 1 1 Artifact . | . . . Weapon 10 | . 4 6 Energy Gun 8 | . 4 4 Energy Cannon . | . . . Ballistic Gun . | . . . Ballistic Cannon . | . . . Launcher 1 | . . 1 Special Weapon . | . . . Impact Weapon 1 | . . 1 Slashing Weapon . | . . . Piercing Weapon . | . . . Special Melee Weapon . | . . . Unidentified Prototypes 1 | . 1 . Parts Lost 7 | . . 7 Power 2 | . . 2 Propulsion 2 | . . 2 Utility . | . . . Weapon 3 | . . 3 Highest Loss Streak 4 | . . 4 To Critical Strikes . | . . . Average Backups 14 | 6 8 17 Power . | 1 1 . Propulsion 2 | 4 3 2 Utility 1 | . 1 1 Weapon 9 | 1 2 12 Tool/Special . | . . . Unused Backups 24 | 7 . 17 Power 2 | 1 . 1 Propulsion 4 | 3 . 1 Utility 3 | 1 . 2 Weapon 14 | 2 . 12 Tool/Special 1 | . . 1 Average Slot Usage (%) 98 | . 94 99 Engine 13 | . 14 13 Treads 21 | . . 26 Wheel 6 | . 28 1 Storage 14 | . 14 14 Protection 13 | . 9 14 Energy Gun 22 | . 20 23 Ballistic Gun 1 | . 7 . Impact Weapon 3 | . . 3 Peak Build Rating 18 | 7 13 18 Average Rating 12 | 6 9 13 On Entrance 8 | 6 6 13 Naked Turns . | . . . Heaviest Build 59 | 13 52 59 Greatest Support 40 | 20 20 40 Greatest Overweight (x) 2 | 1 2 2 Average Overweight (x) . | . . 1 Largest Inventory Capacity 20 | 8 20 20 Average Capacity 17 | 8 12 20 Most Carried 20 | 8 14 20 Average Carried 14 | 6 8 17 Final Capacity 20 | 8 20 20 Final Carried 17 | 7 14 17 Class Distribution -------------------- 100% | Mutant Dominant Class ---------------- Mutant | -10/Materials Mutant | -10/Subcaves Resources | -11 -10 -10 ----------- Run | Yrd Mat Sub Matter Collected 637 | 316 107 214 Remotely . | . . . Salvage Created 772 | 170 233 369 Parts 53 | 14 17 22 Haulers Intercepted 1 | . 1 . Recyclers Shooed . | . . . Parts Field Recycled . | . . . Retrieved Matter . | . . . Parts Self-Destructed 10 | . . 10 Prevented . | . . . Kills | -11 -10 -10 ------- Run | Yrd Mat Sub Combat Hostiles Destroyed 15 | . 7 8 Guns 13 | . 7 6 AOE 1 | . . 1 Classes Destroyed 6 | 2 3 1 Tunneler 5 | 5 . . Hauler 1 | . 1 . Recycler 1 | 1 . . Swarmer 6 | . 5 1 Grunt 2 | . 2 . Subdweller 7 | . . 7 Best Kill Streak 4 | 4 4 2 Combat Bots Only 3 | . 3 2 Max Kills in Single Turn 2 | 1 2 1 Gunslinging 1 | . 1 . Exploded 1 | . . 1 Melee . | . . . Uniques/NPCs Destroyed . | . . . Combat | -11 -10 -10 -------- Run | Yrd Mat Sub Hostile Shots Fired 118 | . 29 89 Missed 35 | . 7 28 Hits 83 | . 22 61 Projectile 83 | . 22 61 Critical Strikes 1 | . . 1 Damage Taken 1366 | . 206 1160 Core 262 | . 53 209 Absorbed by Shields . | . . . Redirected to Shielding 22 | . . 22 Ignored by Resistances 54 | . . 54 Core Remaining (%) 100 | 100 . . Volleys Fired 81 | 24 15 42 Largest 2 | 2 2 2 Hottest 110 | 40 90 110 Shots Fired 151 | 48 30 73 Gun 144 | 48 30 66 Cannon . | . . . Launcher 7 | . . 7 Special . | . . . Kinetic 59 | 48 11 . Thermal 11 | . 11 . Explosive . | . . . Electromagnetic 81 | . 8 73 Robot Hit Streak 35 | 6 10 35 Robot Miss Streak 6 | 6 2 2 Penetration Max . | . . . Secondary Targets 1 | . 1 . Max Gunslinging Chain 1 | . 1 . Shots Hit Robots 121 | 26 25 70 Core Hits 45 | 8 15 22 Critical Kills . | . . . Critical Parts Destroyed 1 | . . 1 Critical Strikes 1 | . . 1 Smash 1 | . . 1 Melee Attacks 32 | . . 32 Impact 32 | . . 32 Slashing . | . . . Piercing . | . . . Sneak Attacks 2 | . . 2 Combat Hostiles . | . . . Follow-up Attacks . | . . . Damage Inflicted 1111 | 304 264 543 Guns 926 | 304 264 358 Cannons . | . . . Explosions 124 | . . 124 Melee 61 | . . 61 Ramming . | . . . Kinetic 366 | 304 62 . Thermal 98 | . 98 . Explosive . | . . . Electromagnetic 586 | . 104 482 Impact 61 | . . 61 Slashing . | . . . Piercing . | . . . Highest Corruption 2 | . 2 2 Average Corruption 2 | . 2 2 Corruption Purged . | . . . Corruption Blocked . | . . . Effects 23 | . 2 21 Message Errors 3 | . . 3 Matter Fused 7 | . 1 6 Heat Flow Errors 2 | . . 2 Energy Discharges 5 | . . 5 Parts Rejected 1 | . . 1 Data Loss (minor) 3 | . 1 2 Data Loss (major) 1 | . . 1 Weapon Failures 1 | . . 1 Overload Shots . | . . . Overflow Damage 23 | . . 23 Projectiles . | . . . Explosions . | . . . Melee 23 | . . 23 Knockbacks 1 | . . 1 Impact 1 | . . 1 Kinetic . | . . . Secondary . | . . . Self-Inflicted Damage 13 | . . 13 Shots 1 | . . 1 Rammed . | . . . Targets Rammed . | . . . Kicked . | . . . Crushed . | . . . Highest Temperature 190 | . 147 190 Average Temperature 42 | . 44 39 Received Heat Transfer 144 | . 36 108 Siege Activations . | . . . Martial Activations . | . . . Shielding Activations . | . . . Robots Disrupted . | . . . Combat Hostiles . | . . . Robots Corrupted 1 | . . 1 Combat Hostiles 1 | . . 1 Parts Fried 4 | . 1 3 Impact Corruptions 2 | . . 2 Robots Melted . | . . . Combat Hostiles . | . . . Parts Melted . | . . . Heat Transferred 225 | . 225 . Parts Sabotaged . | . . . Parts Stolen . | . . . Parts Stripped . | . . . Power Chain Reactions . | . . . Alert | -11 -10 -10 ------- Run | Yrd Mat Sub Maximum Alert Level . | . . . Low Security (%) 100 | 100 100 . Level 1 . | . . . Level 2 . | . . . Level 3 . | . . . Level 4 . | . . . Level 5 . | . . . High Security . | . . . Max Security . | . . . Peak Influence 105 | 10 105 . Initial . | . . . Average 35 | 1 49 . Influence Increases 242 | 30 192 20 Destroy 0b10 Robot/C 160 | . 140 20 Destroy 0b10 Robot/NC 35 | 30 5 . Destroy Leader 32 | . 32 . Lose Combat Pursuer 15 | . 15 . Influence Decreases 242 | 30 170 42 Entered New Map 11 | . . 11 Time Decay 231 | 30 170 31 Squads Dispatched . | . . . Investigation . | . . . Extermination . | . . . Reinforcement . | . . . Assault . | . . . Garrison . | . . . Intercept . | . . . Searches Triggered . | . . . Construction Impeded . | . . . Haulers Reinforced . | . . . Active Scanning Responses . | . . . Cargo Convoy Interrupts . | . . . Stealth | -11 -10 -10 --------- Run | Yrd Mat Sub Distress Signals 1 | . 1 . Communications Jammed . | . . . Distress Signals . | . . . Times Spotted 22 | . 12 10 Peak Tracking Total 3 | . 3 2 Tactical Retreats 2 | . 1 1 Traps | -11 -10 -10 ------- Run | Yrd Mat Sub Traps Triggered 1 | . 1 . Indirectly . | . . . Trap Hack Attempts . | . . . Triggered . | . . . Disarmed . | . . . Reprogrammed . | . . . Reused . | . . . Traps Extracted . | . . . Installed . | . . . Triggered . | . . . Machines | -11 -10 -10 ---------- Run | Yrd Mat Sub Machines Disabled . | . . . Max in Single Turn . | . . . Machines Repaired . | . . . Machines Dismantled . | . . . Machines Sabotaged . | . . . Overloaded Fab Kills . | . . . Hacking | -11 -10 -10 --------- Run | Yrd Mat Sub Machines Accessed 2 | . 1 1 Terminals 1 | . 1 . Fabricators . | . . . Repair Stations . | . . . Recycling Units . | . . . Scanalyzers . | . . . Garrison Access . | . . . Total Hacks 8 | . 4 4 Successful 4 | . . 4 Failed 4 | . 4 . Catastrophic . | . . . Database Lockouts . | . . . Manual 4 | . 4 . Terminals 4 | . 4 . Fabricators . | . . . Repair Stations . | . . . Recycling Units . | . . . Scanalyzers . | . . . Garrison Access . | . . . Terminal Hacks 4 | . . 4 Record 4 | . . 4 Fabricator Hacks . | . . . Repair Station Hacks . | . . . Recycling Unit Hacks . | . . . Scanalyzer . | . . . Garrison Access Hacks . | . . . Unauthorized Hacks . | . . . Terminals . | . . . Fabricators . | . . . Repair Stations . | . . . Recycling Units . | . . . Scanalyzers . | . . . Garrison Access . | . . . Data Cores Recovered . | . . . Used . | . . . Hacking Detections 1 | . 1 . Full Trace Events . | . . . Feedback Events . | . . . Feedback Blocked . | . . . Robot Schematics Acquired . | . . . Robots Built . | . . . Authchips . | . . . Time . | . . . Total Robot Build Rating . | . . . Part Schematics Acquired . | . . . Parts Built . | . . . Authchips . | . . . Time . | . . . Total Part Build Rating . | . . . Parts Repaired . | . . . Time . | . . . Parts Recycled . | . . . Recycled Matter . | . . . Retrieved Matter . | . . . Retrieved Components . | . . . Parts Scanalyzed . | . . . Part Schematics Acquired . | . . . Parts Damaged . | . . . Bothacking | -11 -10 -10 ------------ Run | Yrd Mat Sub Used RIF Installer . | . . . Robots Hacked . | . . . Non-combat . | . . . Combat . | . . . Robot Hacks Applied . | . . . Relay Couplers Released . | . . . Fabnet Peak Effective % . | . . . Robots Rewired . | . . . Allies Hacked . | . . . Hacks Repelled . | . . . Allies | -11 -10 -10 -------- Run | Yrd Mat Sub Total Allies . | . . . Largest Group . | . . . Highest-Rated Group . | . . . Highest-Rated Ally . | . . . Total Orders . | . . . Ally Attacks . | . . . Total Damage . | . . . Kills . | . . . Allies Corrupted . | . . . Allies Melted . | . . . Intel | -11 -10 -10 ------- Run | Yrd Mat Sub Active Infowar (turns) . | . . . Robot Analysis Total . | . . . Derelict Logs Recovered . | . . . Drone Launches . | . . . Drone Recoveries . | . . . Exploration | -11 -10 -10 ------------- Run | Yrd Mat Sub Turns Passed 2101 | 155 366 1580 Spaces Moved 948 | 68 318 562 Core . | . . . Treads 514 | . . 514 Legs 39 | 39 . . Wheels 395 | 29 318 48 Hover . | . . . Flight . | . . . Fastest Speed 80 | 80 80 110 Average Speed 173 | 103 90 228 Slowest Speed 240 | 120 110 240 Overloaded Moves . | . . . Propulsion Burnouts . | . . . Robots Hopped . | . . . Potential Cave-ins . | . . . Cave-ins Triggered . | . . . Exploration Rate (%) 26 | 4 50 25 Regions Visited 2 Branch Regions 1 Pre-discovered Areas . | . . . Known Exits Taken . | . . . Unknown Exits Taken 2 | 1 1 . Scrap Searched . | . . . Spaces Dug . | . . . Terrain Destroyed . | . . . Melee . | . . . Projectile . | . . . AOE . | . . . Terrain Rammed . | . . . Walls Destroyed . | . . . Machines Disabled . | . . . Actions | -11 -10 -10 --------- Run | Yrd Mat Sub Total 1201 | 110 366 725 Wait 70 | 8 10 52 Move 946 | 67 317 562 Hop . | . . . Pick Up 23 | 4 9 10 Fast Attach 10 | 1 5 4 Attach 5 | . . 5 Detach 3 | 1 . 2 Swap 16 | 1 4 11 Drop 15 | 4 6 5 Fire 81 | 24 15 42 Melee 32 | . . 32 Ram . | . . . Kick . | . . . Crush . | . . . Escape Stasis . | . . . Rewire . | . . . Trap . | . . . Miscellaneous . | . . . Route ------- -11/Scrapyard -10/Materials (discovered 2 exits: [*Mat] / *Sub) -10/Subcaves (discovered 2 exits: [*Mat x2]) History --------- Turn | Location | Event 1 | -11/Scrapyard | Discovered new exit (range 3) 156 | -11/Scrapyard | Entered Materials 276 | -10/Materials | Discovered new exit (range 7) 296 | -10/Materials | Discovered new exit (range 12) 332 | -10/Materials | Build established: Mutant 522 | -10/Materials | Entered Subcaves 523 | -10/Subcaves | Approached by a straggling Scientist 535 | -10/Subcaves | Discovered new exit (range 9) 596 | -10/Subcaves | Ambushed by Subdwellers from Twisted Machinery 596 | -10/Subcaves | Discovered new exit (range 8) 774 | -10/Subcaves | Core integrity fell below 50% 860 | -10/Subcaves | Visited Clippyterm 867 | -10/Subcaves | Learned Research security intel 867 | -10/Subcaves | Learned Factory stockpile data 1029 | -10/Subcaves | Shifting Twisted Machinery released Riot Gun 1215 | -10/Subcaves | Shifting Twisted Machinery released Sub. Shrapnel Launcher 1998 | -10/Subcaves | Core integrity fell below 20% 2102 | -10/Subcaves | Destroyed by YB-5GJ(R) with Subdweller Machine Gun Last Messages --------------- 01918_ ZH-UHL(R) destroyed. 01928_ Dropped EMP Blaster. 01933_ Acquired Battle Rifle. FN-4FD(c): "I think it's somewhere northwest of here" 02005_ Riot Gun destroyed. 02012_ ZZ-1V2(R) misfires. 02013_ FN-4FD(c) destroyed. 02016_ ZZ-1V2(R) destroyed. 02019_ Acquired 10 matter. 02022_ KR-6P7(R): "YOUGO!" 02025_ Tech Extrapolator violently self-destructs. 02028_ KR-6P7(R) destroyed. 02032_ System corrupted: Matter fused (-8). 02066_ EM Shotgun destroyed. 02073_ System corrupted: Hvy. Riot Gun failed to cycle. 02084_ Ion Engine destroyed. 02088_ EM Shotgun destroyed. 02092_ Lgt. Treads destroyed. Map ----- +----------------------------------------------------+ | ????????????????????????????????????????###?????## | | ?????????????????????????????????????????????????? | | ?????????????????????????????????????????????????? | | ?????????????????????????????????????????????????? | | ?????????????????????????????????????????????????? | | ?????????????????????????????????????????????????? | | ?????????????????????????????????????????????????? | | ?????????????????????????????????????????????????? | | ?????????????????????????????????????????????????? | | ?????????????????????????????????????????????????? | | ?????????????????????????????????????????????????? | | ?????????????????????????????????????????????????? | | ?????????????????????????????????????????????????? | | ?????????????????????????????????????????????????? | | ?????????????????????????????????????????????????? | | ?????????????????????????????????????????????????? | | ???????????????????????????#?????????????????????? | | ????????????????????????###"?????????????????????? | | ????????????????????????# "?????????????????????? | | ???????????????????????? ??????????????????????? | | ???????????????????????##" ??????????????????????? | | ???????????????????????#" "??????????????????????? | | ???????????????????????? ??????????????????????? | | ????????????????????????" #??????????????????????? | | ????????????????????????#R##?????????????????????? | | ???????????????????????##@ #?????????????????????? | | ???????????????????????#" ##?????????????????????? | | ???????????????????????## "#?????????????????????? | | ????????????????????????# ##????????????????????? | | ????????????????????????#= #????????????????????? | | ???????????????????????##% #????????????????????? | | ???????????????????????# #????????????????????? | | ???????????????????????# ##????????????????????? | | ???????????????????????# ##?????????????????????? | | ??????????????????????## #??????????????????????? | | ?????????????????#??###* #??????????????????????? | | ????????????????## ## %=##??????????????????????? | | ????????????????#" " %##???????????????????????? | | ????????# &%&### &###??????####????????????? | | ??????? ] # ######## ####?????????? | | ??????? " # ######????? | | ????????# ### # # ###" """ #????? | | ?????????????##?## # ##""" # ## #????? | | ????????????????# """"%[] ####### ####??? | | ????????????????# """ ##?????# # #### | | ????????????????# "" #### #??????# | | ????????????????## ###"" ##??###??????# | | ?????????????????###??#"" #????????????#### = | | ??????????????????????#" #???????????????###%! | | ??????????????????????## #??????????????????## | +----------------------------------------------------+ Best States ------------- Heat Dissipation 25 Energy Generation 10 Energy Capacity 250 Matter Stores 300 Matter Capacity 300 Sight Range 16 Terrain Scan Density 10 Armor Coverage 100 Resistance: KI 10 Core Shielding 20 Evasion (%) 55 Recoil Reduction 2 Item Schematics ----------------- None Robot Schematics ------------------ None Fabricated ------------ Nothing Repaired ---------- Nothing Alien Tech Used ----------------- None Achievements -------------- None Challenges ------------ None Game ------ Seed ArmorUtilityBooster Manual? 0 Play Time 00:15:09 Cumulative 212.3 hours Start 2025.05.18 @ 13:28:38 End 2025.05.18 @ 13:41:14 Sessions 1 Manual Loads 0 Difficulty Rogue Special Mode None Game No. 168 Rogue 168 Adventurer 0 Explorer 0 Win Type - Total 4 Types 2/0/1/1/0/0/0/0/0/0 Lore% 51 Gallery% 70 Achievement% 64 Wizard Run 0 Options --------- Layout 1 ASCII 0 Keyboard 1 Movement Numpad Keybinds 0 Fullscreen 1 Font 48/Smallcaps Map View 55x35 Zoom Use 0% Tactical HUD 1 Map Filters NONE Filters NONE Steam 1 RUN: a5572fdb-8c36-4c89-a2a3-b381aa2dc261